fUST/lending_fUST_20241231
["ID","MTS","AMOUNT","RATE_DAILY","PERIOD"]
[347210275,1735576242998,-416.32860369,0.000125,2]
[347210278,1735576243007,-1521.36245962,0.00012516,2]
[347210280,1735576243017,-1806.65,0.00012601,2]
[347210282,1735576243030,-939.11,0.00012601,2]
[347210283,1735576243039,-1263.53,0.00012602,2]
[347210284,1735576243049,-6048.69,0.00012602,2]
[347210285,1735576243058,-578.18,0.00012602,2]
[347210286,1735576243067,-500.0,0.00012602,2]
[347210287,1735576243076,-500.0,0.00012602,2]
[347210288,1735576243085,-500.0,0.00012602,2]
[347210289,1735576243095,-782.68,0.00012602,2]
[347210290,1735576243104,-263.92,0.00012602,2]
[347210291,1735576243113,-2570.42,0.00012602,2]
[347210292,1735576243122,-920.24,0.00012602,2]
[347210294,1735576243131,-624.82,0.00012602,2]
[347210295,1735576243140,-500.0,0.00012602,2]
[347210298,1735576243210,-1210.22,0.00012602,2]
[347210299,1735576243228,-363.61860542,0.00012602,2]
[347210300,1735576243237,-939.11,0.00012875,2]
[347210301,1735576243247,-1263.53,0.00012876,2]
[347210302,1735576243256,-6048.69,0.00012876,2]
[347210303,1735576243271,-578.18,0.00012876,2]
[347210304,1735576243280,-500.0,0.00012876,2]
[347210305,1735576243289,-500.0,0.00012876,2]
[347210306,1735576243299,-500.0,0.00012876,2]
[347210307,1735576243309,-782.68,0.00012876,2]
[347210308,1735576243318,-2570.42,0.00012876,2]
[347210309,1735576243327,-920.24,0.00012876,2]
[347210310,1735576243337,-624.82,0.00012876,2]
[347210311,1735576243346,-500.0,0.00012876,2]
[347210312,1735576243356,-1210.22,0.00012876,2]
[347210313,1735576243365,-1806.65,0.00013149,2]
[347210314,1735576243374,-939.11,0.00013149,2]
[347210316,1735576243383,-1263.53,0.0001315,2]
[347210317,1735576243392,-6048.69,0.0001315,2]
[347210318,1735576243402,-578.18,0.0001315,2]
[347210319,1735576243412,-500.0,0.0001315,2]
[347210320,1735576243421,-500.0,0.0001315,2]
[347210321,1735576243430,-500.0,0.0001315,2]
[347210322,1735576243439,-782.68,0.0001315,2]
[347210323,1735576243449,-2570.42,0.0001315,2]
[347210324,1735576243458,-920.24,0.0001315,2]
[347210325,1735576243467,-624.82,0.0001315,2]
[347210326,1735576243476,-500.0,0.0001315,2]
[347210327,1735576243485,-1210.22,0.0001315,2]
[347210328,1735576243495,-1521.36245962,0.00013208,2]
[347210330,1735576243504,-313.0,0.00013232,2]
[347210332,1735576243514,-306.8026703,0.00013233,2]
[347210334,1735576243525,-807.936,0.000133,2]
[347210335,1735576243534,-423.73092737,0.00013338,2]
[347210336,1735576243544,-939.11,0.00013423,2]
[347210337,1735576243552,-1263.53,0.00013424,2]
[347210338,1735576243562,-6048.69,0.00013424,2]
[347210339,1735576243571,-578.18,0.00013424,2]
[347210340,1735576243581,-500.0,0.00013424,2]
[347210341,1735576243590,-637.03141658,0.00013424,2]
[347210342,1735576243599,-500.0,0.00013424,2]
[347210343,1735576243609,-782.68,0.00013424,2]
[347210344,1735576243618,-2570.42,0.00013424,2]
[347210345,1735576243629,-920.24,0.00013424,2]
[347210346,1735576243639,-624.82,0.00013424,2]
[347210347,1735576243648,-500.0,0.00013424,2]
[347210348,1735576243658,-1210.22,0.00013424,2]
[347210349,1735576243667,-8288.0311586,0.00013577,2]
[347210350,1735576243676,-151.0,0.000136,2]
[347210351,1735576243686,-1806.65,0.00013697,2]
[347210352,1735576243696,-353.89171492,0.00013697,2]
[347210353,1735576243711,-585.21828508,0.00013697,2]
[347210354,1735576243720,-1000.0,0.00013698,2]
[347210355,1735576243731,-500.0,0.00013698,2]
[347210356,1735576243740,-500.0,0.00013698,2]
[347210357,1735576243750,-500.0,0.00013698,2]
[347210358,1735576243759,-202.78171493,0.00013698,2]
[347210363,1735576246338,-500.0,0.0001178,2]
[347210364,1735576246350,-180.62,0.00012054,2]
[347210365,1735576246360,-121.68350445,0.00013698,2]
[347210366,1735576246372,-939.06478062,0.00013698,2]
[347210367,1735576246381,-5355.26476151,0.00013698,2]
[347210368,1735576246451,-693.42523849,0.00013698,2]
[347210369,1735576246460,-500.0,0.00013698,2]
[347210370,1735576246470,-500.0,0.00013698,2]
[347210371,1735576246479,-782.68,0.00013698,2]
[347210372,1735576246488,-2570.42,0.00013698,2]
[347210373,1735576246497,-920.24,0.00013698,2]
[347210374,1735576246507,-624.82,0.00013698,2]
[347210375,1735576246516,-500.0,0.00013698,2]
[347210377,1735576246526,-1210.22,0.00013698,2]
[347210378,1735576246536,-212.238868,0.00013699,2]
[347210379,1735576246619,-653.255,0.00013699,2]
[347210380,1735576246630,-10579.55317666,0.0001379,2]
[347210381,1735576246640,-151.0,0.000138,2]
[347210382,1735576246650,-1806.65,0.00013899,2]
[347210383,1735576246659,-1806.65,0.00013899,2]
[347210384,1735576246669,-1521.36245962,0.000139,2]
[347210385,1735576246678,-939.11,0.00013971,2]
[347210386,1735576246687,-1263.53,0.00013972,2]
[347210387,1735576246697,-6048.69,0.00013972,2]
[347210388,1735576246706,-203.10044824,0.00013972,2]
[347210389,1735576246716,-782.68,0.00013972,2]
[347210391,1735576246725,-2570.42,0.00013972,2]
[347210392,1735576246735,-920.24,0.00013972,2]
[347210393,1735576246744,-624.82,0.00013972,2]
[347210395,1735576246754,-500.0,0.00013972,2]
[347210396,1735576246763,-1210.22,0.00013972,2]
[347210397,1735576246773,-500.0,0.00013973,2]
[347210399,1735576246782,-500.0,0.00013973,2]
[347210400,1735576246792,-601.99541837,0.00013973,2]
[347210402,1735576246802,-500.0,0.00013973,2]
[347210403,1735576246811,-610.66040754,0.00013973,2]
[347210404,1735576246821,-500.0,0.00013973,2]
[347210405,1735576246830,-500.0,0.00013973,2]
[347210406,1735576246839,-275.85946742,0.00013973,2]
[347210407,1735576246849,-500.42445925,0.00013973,2]
[347210408,1735576246858,-400.0,0.00013973,2]
[347210409,1735576246868,-217256.09856057,0.0001399,2]
[347210410,1735576246877,-228.0,0.0001399,2]
[347210411,1735576246886,-348.12590684,0.00013999,2]
[347210412,1735576246896,-160.0,0.00013999,2]
[347210413,1735576246905,-1806.65,0.00013999,2]
[347210414,1735576246915,-1806.65,0.00013999,2]
[347210415,1735576246924,-1806.65,0.00013999,2]
[347210416,1735576246933,-1806.65,0.00013999,2]
[347210417,1735576246943,-1806.65,0.00013999,2]
[347210418,1735576246953,-1806.65,0.00013999,2]
[347210419,1735576246963,-1806.65,0.00013999,2]
[347210420,1735576246972,-1806.65,0.00013999,2]
[347210421,1735576246981,-1806.65,0.00013999,2]
[347210422,1735576246990,-1806.65,0.00013999,2]
[347210423,1735576246999,-1806.65,0.00013999,2]
[347210424,1735576247008,-1806.65,0.00013999,2]
[347210425,1735576247018,-1806.65,0.00013999,2]
[347210426,1735576247027,-1806.81,0.00013999,2]
[347210427,1735576247038,-6732.32414808,0.00014,2]
[347210428,1735576247048,-123634.34926654,0.00014,2]
[347210429,1735576247057,-117214.6089153,0.00014,2]
[347210438,1735576632472,200.0,0.00025,120]
[347210479,1735577390491,-1827.45753708,9.715e-05,2]
[347210480,1735577390555,-1724.99305837,9.715e-05,2]
[347210523,1735577432668,-605.95532907,9.715e-05,2]
[347210525,1735577432679,-4158.40592452,9.813e-05,2]
[347210527,1735577432689,-938.10500797,0.00010113,2]
[347210531,1735577432721,-999.7066692,0.00010113,2]
[347210534,1735577432732,-1971.1075137,0.00010113,2]
[347210535,1735577432743,-522.48074656,0.00010958,2]
[347210537,1735577432759,-500.0,0.00010958,2]
[347210540,1735577432772,-224.13735021,0.00010958,2]
[347210542,1735577432783,-554.14804999,0.00010958,2]
[347210543,1735577432795,-585.23488923,0.00010958,2]
[347210545,1735577432807,-500.0,0.00010958,2]
[347210547,1735577432818,-515.1983499,0.00010958,2]
[347210550,1735577432828,-500.0,0.00010958,2]
[347210553,1735577432838,-500.0,0.00010958,2]
[347210557,1735577432849,-500.0,0.00010958,2]
[347210560,1735577432859,-500.0,0.00010958,2]
[347210562,1735577432869,-500.0,0.00010958,2]
[347210565,1735577432879,-500.0,0.00010958,2]
[347210568,1735577432889,-500.0,0.00010958,2]
[347210571,1735577432899,-500.0,0.00010958,2]
[347210573,1735577432909,-500.0,0.00010958,2]
[347210576,1735577432919,-500.0,0.00010958,2]
[347210578,1735577432929,-500.0,0.00010958,2]
[347210581,1735577432939,-500.0,0.00010958,2]
[347210584,1735577432950,-500.0,0.00010958,2]
[347210586,1735577432960,-504.4683239,0.00010958,2]
[347210588,1735577432970,-628.01681434,0.00010958,2]
[347210590,1735577432979,-502.27029324,0.00010958,2]
[347210592,1735577432990,-500.0,0.00010958,2]
[347210594,1735577432999,-501.34607542,0.00010958,2]
[347210596,1735577433014,-507.83132206,0.00010958,2]
[347210599,1735577433025,-449.29853424,0.00010958,2]
[347210600,1735577433035,-500.0,0.00010958,2]
[347210602,1735577433046,-500.0,0.00010958,2]
[347210605,1735577433057,-500.0,0.00010958,2]
[347210607,1735577433067,-500.0,0.00010958,2]
[347210609,1735577433078,-500.0,0.00010958,2]
[347210611,1735577433089,-443.62502219,0.00010958,2]
[347210613,1735577433099,-500.0,0.00010958,2]
[347210615,1735577433110,-502.38442439,0.00010958,2]
[347210616,1735577433119,-274.22527608,0.00010958,2]
[347210630,1735577433237,-500.0,0.00010958,2]
[347210632,1735577433248,-500.0,0.00010958,2]
[347210634,1735577433262,-500.0,0.00010958,2]
[347210636,1735577433273,-500.0,0.00010958,2]
[347210638,1735577433283,-500.0,0.00010958,2]
[347210640,1735577433294,-500.0,0.00010958,2]
[347210642,1735577433304,-500.0,0.00010958,2]
[347210644,1735577433314,-570.43356481,0.00010958,2]
[347210646,1735577433325,-500.0,0.00010958,2]
[347210648,1735577433334,-500.0,0.00010958,2]
[347210650,1735577433344,-500.0,0.00010958,2]
[347210652,1735577433354,-500.0,0.00010958,2]
[347210654,1735577433363,-500.0,0.00010958,2]
[347210656,1735577433372,-544.58096834,0.00010958,2]
[347210658,1735577433382,-500.0,0.00010958,2]
[347210660,1735577433392,-500.0,0.00010958,2]
[347210662,1735577433401,-448.62236597,0.00010958,2]
[347210664,1735577433411,-500.0,0.00010958,2]
[347210666,1735577433420,-459.97915497,0.00010958,2]
[347210668,1735577433430,-501.27073296,0.00010958,2]
[347210670,1735577433440,-500.2695907,0.00010958,2]
[347210672,1735577433449,-500.0,0.00010958,2]
[347210674,1735577433459,-500.0,0.00010958,2]
[347210676,1735577433469,-500.0,0.00010958,2]
[347210678,1735577433479,-512.7715181,0.00010958,2]
[347210680,1735577433488,-500.0,0.00010958,2]
[347210682,1735577433498,-544.39957136,0.00010958,2]
[347210684,1735577433511,-500.0,0.00010958,2]
[347210686,1735577433522,-500.0,0.00010958,2]
[347210688,1735577433534,-500.0,0.00010958,2]
[347210690,1735577433544,-500.0,0.00010958,2]
[347210692,1735577433554,-500.0,0.00010958,2]
[347210694,1735577433564,-500.0,0.00010958,2]
[347210696,1735577433575,-500.0,0.00010958,2]
[347210698,1735577433585,-500.0,0.00010958,2]
[347210700,1735577433595,-503.68711025,0.00010958,2]
[347210702,1735577433604,-500.0,0.00010958,2]
[347210704,1735577433615,-501.89887644,0.00010958,2]
[347210706,1735577433626,-500.0,0.00010958,2]
[347210708,1735577433638,-500.0,0.00010958,2]
[347210710,1735577433648,-500.0,0.00010958,2]
[347210712,1735577433657,-502.65558615,0.00010958,2]
[347210714,1735577433667,-500.0,0.00010958,2]
[347210716,1735577433677,-500.0,0.00010958,2]
[347210718,1735577433687,-15188.68872805,0.00010958,2]
[347210720,1735577433702,-19563.17821784,0.00010958,2]
[347210723,1735577433722,-15248.13305411,0.00010958,2]
[347210725,1735577433732,-500.0,0.00010958,2]
[347210727,1735577433743,-500.0,0.00010958,2]
[347210729,1735577433755,-500.0,0.00010958,2]
[347210730,1735577433765,-500.0,0.00010958,2]
[347210732,1735577433776,-500.0,0.00010958,2]
[347210734,1735577433786,-500.0,0.00010958,2]
[347210736,1735577433797,-500.0,0.00010958,2]
[347210737,1735577433807,-212.6,0.00010958,2]
[347210738,1735577433818,-500.0,0.00010958,2]
[347210739,1735577433828,-500.0,0.00010958,2]
[347210740,1735577433839,-641.18,0.00010958,2]
[347210741,1735577433849,-500.0,0.00010958,2]
[347210742,1735577433859,-502.20093038,0.00010958,2]
[347210743,1735577433868,-500.0,0.00010958,2]
[347210744,1735577433878,-500.0,0.00010958,2]
[347210745,1735577433888,-500.0,0.00010958,2]
[347210746,1735577433897,-500.0,0.00010958,2]
[347210747,1735577433907,-500.0,0.00010958,2]
[347210749,1735577433918,-500.0,0.00010958,2]
[347210751,1735577433928,-506.5550353,0.00010958,2]
[347210752,1735577433937,-530.06576934,0.00010958,2]
[347210754,1735577433947,-300.0,0.00010958,2]
[347210756,1735577433957,-500.0,0.00010958,2]
[347210758,1735577433967,-500.0,0.00010958,2]
[347210761,1735577433978,-500.0,0.00010958,2]
[347210763,1735577433988,-500.0,0.00010958,2]
[347210765,1735577433998,-500.0,0.00010958,2]
[347210767,1735577434013,-500.0,0.00010958,2]
[347210769,1735577434023,-500.0,0.00010958,2]
[347210771,1735577434033,-500.0,0.00010958,2]
[347210773,1735577434042,-406.12874765,0.00010958,2]
[347210774,1735577434052,-558.46469678,0.00010958,2]
[347210776,1735577434062,-500.0,0.00010958,2]
[347210778,1735577434072,-327.13738913,0.00010958,2]
[347210779,1735577434082,-500.0,0.00010958,2]
[347210781,1735577434092,-500.0,0.00010958,2]
[347210782,1735577434102,-500.0,0.00010958,2]
[347210783,1735577434112,-500.0,0.00010958,2]
[347210784,1735577434125,-500.0,0.00010958,2]
[347210785,1735577434140,-500.0,0.00010958,2]
[347210786,1735577434154,-500.0,0.00010958,2]
[347210787,1735577434168,-500.0,0.00010958,2]
[347210788,1735577434180,-500.0,0.00010958,2]
[347210789,1735577434193,-525.97916596,0.00010958,2]
[347210790,1735577434206,-500.0,0.00010958,2]
[347210791,1735577434219,-500.0,0.00010958,2]
[347210792,1735577434233,-500.0,0.00010958,2]
[347210793,1735577434247,-500.0,0.00010958,2]
[347210794,1735577434264,-500.0,0.00010958,2]
[347210795,1735577434277,-500.0,0.00010958,2]
[347210796,1735577434291,-500.0,0.00010958,2]
[347210797,1735577434304,-500.0,0.00010958,2]
[347210798,1735577434317,-500.0,0.00010958,2]
[347210800,1735577434329,-500.0,0.00010958,2]
[347210801,1735577434341,-500.0,0.00010958,2]
[347210803,1735577434353,-500.0,0.00010958,2]
[347210804,1735577434366,-501.28226224,0.00010958,2]
[347210805,1735577434379,-500.0,0.00010958,2]
[347210806,1735577434393,-500.0,0.00010958,2]
[347210807,1735577434404,-537.71,0.00010958,2]
[347210808,1735577434414,-500.0,0.00010958,2]
[347210809,1735577434427,-500.0,0.00010958,2]
[347210810,1735577434439,-500.0,0.00010958,2]
[347210811,1735577434452,-501.32744387,0.00010958,2]
[347210812,1735577434465,-285.53807834,0.00010958,2]
[347210813,1735577434478,-500.0,0.00010958,2]
[347210814,1735577434491,-500.0,0.00010958,2]
[347210815,1735577434506,-500.0,0.00010958,2]
[347210816,1735577434519,-500.0,0.00010958,2]
[347210817,1735577434533,-508.69,0.00010958,2]
[347210818,1735577434545,-500.0,0.00010958,2]
[347210819,1735577434556,-1468.25,0.00010958,2]
[347210820,1735577434567,-503.62908198,0.00010958,2]
[347210821,1735577434578,-500.0,0.00010958,2]
[347210822,1735577434590,-501.76117965,0.00010958,2]
[347210823,1735577434604,-500.0,0.00010958,2]
[347210824,1735577434616,-500.0,0.00010958,2]
[347210825,1735577434628,-500.0,0.00010958,2]
[347210826,1735577434641,-507.48052875,0.00010958,2]
[347210827,1735577434653,-500.0,0.00010958,2]
[347210828,1735577434665,-500.0,0.00010958,2]
[347210829,1735577434679,-502.93897804,0.00010958,2]
[347210830,1735577434690,-500.0,0.00010958,2]
[347210831,1735577434701,-503.66761403,0.00010958,2]
[347210832,1735577434713,-546.40849969,0.00010958,2]
[347210833,1735577434725,-500.0,0.00010958,2]
[347210834,1735577434737,-500.0,0.00010958,2]
[347210835,1735577434749,-551.97,0.00010958,2]
[347210836,1735577434764,-500.0,0.00010958,2]
[347210837,1735577434776,-500.0,0.00010958,2]
[347210838,1735577434787,-500.0,0.00010958,2]
[347210839,1735577434800,-2709.98,0.00010958,2]
[347210840,1735577434812,-2709.98,0.00010958,2]
[347210841,1735577434825,-500.0,0.00010958,2]
[347210842,1735577434837,-446.45421904,0.00010958,2]
[347210843,1735577434848,-500.0,0.00010958,2]
[347210844,1735577434860,-500.0,0.00010958,2]
[347210845,1735577434871,-500.0,0.00010958,2]
[347210846,1735577434883,-501.35968707,0.00010958,2]
[347210847,1735577434895,-500.0,0.00010958,2]
[347210848,1735577434906,-500.0,0.00010958,2]
[347210849,1735577434917,-503.51127022,0.00010958,2]
[347210850,1735577434928,-500.0,0.00010958,2]
[347210851,1735577434940,-500.0,0.00010958,2]
[347210852,1735577434951,-500.0,0.00010958,2]
[347210853,1735577434962,-500.0,0.00010958,2]
[347210854,1735577434973,-500.0,0.00010958,2]
[347210855,1735577434985,-500.0,0.00010958,2]
[347210856,1735577434996,-500.0,0.00010958,2]
[347210857,1735577435010,-500.0,0.00010958,2]
[347210858,1735577435021,-500.0,0.00010958,2]
[347210859,1735577435032,-500.0,0.00010958,2]
[347210860,1735577435044,-500.0,0.00010958,2]
[347210861,1735577435056,-500.0,0.00010958,2]
[347210862,1735577435067,-500.0,0.00010958,2]
[347210863,1735577435078,-500.0,0.00010958,2]
[347210864,1735577435089,-500.0,0.00010958,2]
[347210865,1735577435101,-500.0,0.00010958,2]
[347210866,1735577435112,-387.09589841,0.00010958,2]
[347210867,1735577435124,-500.0,0.00010958,2]
[347210868,1735577435135,-709.27,0.00010958,2]
[347210869,1735577435147,-500.0,0.00010958,2]
[347210870,1735577435158,-500.0,0.00010958,2]
[347210871,1735577435168,-445.02,0.00010958,2]
[347210872,1735577435179,-500.0,0.00010958,2]
[347210873,1735577435298,-500.0,0.00010958,2]
[347210874,1735577435308,-500.0,0.00010958,2]
[347210875,1735577435317,-453.44237889,0.00010958,2]
[347210876,1735577435327,-500.0,0.00010958,2]
[347210877,1735577435336,-500.0,0.00010958,2]
[347210878,1735577435346,-500.0,0.00010958,2]
[347210879,1735577435356,-500.0,0.00010958,2]
[347210880,1735577435366,-500.0,0.00010958,2]
[347210881,1735577435376,-500.0,0.00010958,2]
[347210882,1735577435385,-500.0,0.00010958,2]
[347210883,1735577435395,-564.29,0.00010958,2]
[347210884,1735577435404,-501.69171274,0.00010958,2]
[347210885,1735577435413,-500.0,0.00010958,2]
[347210886,1735577435423,-500.0,0.00010958,2]
[347210887,1735577435432,-500.0,0.00010958,2]
[347210888,1735577435441,-500.0,0.00010958,2]
[347210889,1735577435451,-500.0,0.00010958,2]
[347210890,1735577435460,-500.0,0.00010958,2]
[347210891,1735577435470,-500.0,0.00010958,2]
[347210892,1735577435479,-500.0,0.00010958,2]
[347210893,1735577435488,-502.39980787,0.00010958,2]
[347210894,1735577435497,-500.0,0.00010958,2]
[347210895,1735577435510,-267.59197443,0.00010958,2]
[347210896,1735577435519,-500.0,0.00010958,2]
[347210897,1735577435529,-500.0,0.00010958,2]
[347210898,1735577435538,-562.76658056,0.00010958,2]
[347210899,1735577435547,-500.0,0.00010958,2]
[347210900,1735577435556,-500.0,0.00010958,2]
[347210901,1735577435565,-500.0,0.00010958,2]
[347210902,1735577435575,-500.0,0.00010958,2]
[347210903,1735577435584,-234.96534465,0.00010958,2]
[347210904,1735577435594,-500.0,0.00010958,2]
[347210905,1735577435603,-500.0,0.00010958,2]
[347210906,1735577435613,-500.0,0.00010958,2]
[347210907,1735577435623,-500.0,0.00010958,2]
[347210908,1735577435636,-500.0,0.00010958,2]
[347210909,1735577435649,-500.0,0.00010958,2]
[347210910,1735577435659,-500.0,0.00010958,2]
[347210911,1735577435668,-500.0,0.00010958,2]
[347210912,1735577435679,-500.0,0.00010958,2]
[347210913,1735577435689,-603.7,0.00010958,2]
[347210914,1735577435699,-500.0,0.00010958,2]
[347210915,1735577435708,-500.0,0.00010958,2]
[347210916,1735577435717,-500.0,0.00010958,2]
[347210917,1735577435727,-500.0,0.00010958,2]
[347210918,1735577435736,-500.0,0.00010958,2]
[347210919,1735577435746,-500.0,0.00010958,2]
[347210920,1735577435755,-500.0,0.00010958,2]
[347210921,1735577435765,-500.0,0.00010958,2]
[347210922,1735577435774,-500.0,0.00010958,2]
[347210923,1735577435784,-500.0,0.00010958,2]
[347210924,1735577435793,-500.0,0.00010958,2]
[347210925,1735577435803,-500.0,0.00010958,2]
[347210926,1735577435812,-500.0,0.00010958,2]
[347210927,1735577435821,-4286.76,0.00010958,2]
[347210928,1735577435830,-500.0,0.00010958,2]
[347210929,1735577435839,-500.0,0.00010958,2]
[347210930,1735577435848,-500.0,0.00010958,2]
[347210931,1735577435858,-401.51,0.00010958,2]
[347210932,1735577435867,-500.0,0.00010958,2]
[347210933,1735577435876,-500.0,0.00010958,2]
[347210934,1735577435886,-500.0,0.00010958,2]
[347210935,1735577435896,-498.32801298,0.00010958,2]
[347210936,1735577435905,-500.0,0.00010958,2]
[347210937,1735577435915,-500.0,0.00010958,2]
[347210938,1735577435925,-500.0,0.00010958,2]
[347210939,1735577435935,-500.0,0.00010973,2]
[347210940,1735577435945,-151.0,0.00011,2]
[347210941,1735577435955,-2709.98,0.0001123,2]
[347210942,1735577435964,-2709.98,0.00011231,2]
[347210943,1735577435974,-749.2,0.00011231,2]
[347210944,1735577435983,-501.72802782,0.00011232,2]
[347210945,1735577435993,-500.0,0.00011232,2]
[347210946,1735577436002,-501.68867523,0.00011232,2]
[347210947,1735577436014,-500.0,0.00011232,2]
[347210948,1735577436023,-500.0,0.00011232,2]
[347210949,1735577436035,-500.0,0.00011232,2]
[347210950,1735577436045,-500.0,0.00011232,2]
[347210951,1735577436055,-500.0,0.00011232,2]
[347210952,1735577436064,-500.0,0.00011232,2]
[347210953,1735577436073,-500.0,0.00011232,2]
[347210954,1735577436082,-500.0,0.00011232,2]
[347210955,1735577436091,-173.66,0.00011232,2]
[347210956,1735577436100,-500.0,0.00011232,2]
[347210957,1735577436109,-378.51,0.00011232,2]
[347210958,1735577436119,-500.0,0.00011232,2]
[347210959,1735577436129,-500.0,0.00011232,2]
[347210960,1735577436138,-500.0,0.00011232,2]
[347210961,1735577436147,-585.493618,0.00011232,2]
[347210962,1735577436157,-500.0,0.00011232,2]
[347210963,1735577436166,-500.0,0.00011232,2]
[347210964,1735577436175,-500.0,0.00011232,2]
[347210965,1735577436185,-500.0,0.00011232,2]
[347210966,1735577436194,-500.0,0.00011232,2]
[347210967,1735577436203,-500.0,0.00011232,2]
[347210968,1735577436213,-500.0,0.00011232,2]
[347210969,1735577436222,-437.25789313,0.00011232,2]
[347210970,1735577436232,-500.0,0.00011232,2]
[347210971,1735577436241,-500.0,0.00011232,2]
[347210972,1735577436252,-500.0,0.00011232,2]
[347210973,1735577436265,-500.0,0.00011232,2]
[347210974,1735577436274,-500.0,0.00011232,2]
[347210975,1735577436283,-500.0,0.00011232,2]
[347210976,1735577436293,-319.60914443,0.00011232,2]
[347210977,1735577436302,-500.0,0.00011232,2]
[347210978,1735577436312,-204.67,0.00011232,2]
[347210979,1735577436321,-500.0,0.00011232,2]
[347210980,1735577436331,-500.0,0.00011232,2]
[347210981,1735577436340,-500.0,0.00011232,2]
[347210982,1735577436350,-500.0,0.00011232,2]
[347210983,1735577436359,-500.0,0.00011232,2]
[347210984,1735577436368,-500.0,0.00011232,2]
[347210985,1735577436378,-500.0,0.00011232,2]
[347210986,1735577436387,-500.0,0.00011232,2]
[347210987,1735577436397,-500.0,0.00011232,2]
[347210988,1735577436406,-500.0,0.00011232,2]
[347210989,1735577436415,-500.0,0.00011232,2]
[347210990,1735577436424,-500.0,0.00011232,2]
[347210991,1735577436434,-508.69,0.00011232,2]
[347210992,1735577436444,-1468.25,0.00011232,2]
[347210993,1735577436453,-500.0,0.00011232,2]
[347210994,1735577436462,-500.0,0.00011232,2]
[347210995,1735577436472,-500.0,0.00011232,2]
[347210996,1735577436481,-500.0,0.00011232,2]
[347210997,1735577436491,-500.0,0.00011232,2]
[347210998,1735577436500,-638.95,0.00011232,2]
[347210999,1735577436513,-500.0,0.00011232,2]
[347211000,1735577436522,-500.0,0.00011232,2]
[347211001,1735577436531,-500.0,0.00011232,2]
[347211002,1735577436541,-500.0,0.00011232,2]
[347211003,1735577436551,-500.0,0.00011232,2]
[347211004,1735577436560,-500.0,0.00011232,2]
[347211005,1735577436570,-331.96,0.00011232,2]
[347211006,1735577436579,-448.70245167,0.00011232,2]
[347211007,1735577436589,-500.0,0.00011232,2]
[347211008,1735577436599,-500.0,0.00011232,2]
[347211009,1735577436608,-500.0,0.00011232,2]
[347211010,1735577436617,-500.0,0.00011232,2]
[347211011,1735577436628,-525.49,0.00011232,2]
[347211012,1735577436640,-500.0,0.00011232,2]
[347211013,1735577436653,-709.27,0.00011232,2]
[347211014,1735577436662,-500.0,0.00011232,2]
[347211015,1735577436671,-500.0,0.00011232,2]
[347211016,1735577436681,-500.0,0.00011232,2]
[347211017,1735577436691,-500.0,0.00011232,2]
[347211018,1735577436700,-500.0,0.00011232,2]
[347211019,1735577436709,-500.0,0.00011232,2]
[347211020,1735577436718,-500.0,0.00011232,2]
[347211021,1735577436728,-564.29,0.00011232,2]